Cogmind - Beta 14 @@@ ROGUE MODE // 2024.11.10 @ 14:50:32 Player: Fangrelle Result: Destroyed by DO-PTD(R) with Subdweller Laser Performance ------------- Evolutions (0) 0 Regions Visited (2) 400 Robots Destroyed (30) 150 Value Destroyed (555) 555 Prototype IDs (0) 0 Alien Tech Used (0) 0 Bonus (0) 0 TOTAL SCORE: 1105 Bonus ------- None Cogmind --------- Core Integrity 0/250 Matter 150/300 Energy 96/100 System Corruption 0% Temperature Cool (12) Movement Rolling (110) Location -10/Subcaves Parts ------- > --- POWER (1) -------- (None) > --- PROPULSION (2) --- Subdweller Monowheel > --- UTILITY (2) ------ (None) > --- WEAPON (2) ------- Flamer > --- INVENTORY (5) ---- Huge Storage Unit Datajack Mining Laser Peak State ------------ > --- POWER ------------ Ion Engine > --- PROPULSION ------- Wheel Subdweller Monowheel > --- UTILITY ---------- Scrap Shield > --- WEAPON ----------- Assault Rifle Assault Rifle > --- INVENTORY -------- Huge Storage Unit Mining Laser [Rating: 10] Favorites ----------- Power Ion Engine Engine Ion Engine Propulsion Light Treads Treads Light Treads Wheel Wheel Utility Large Storage Unit Device Seismic Detector Storage Large Storage Unit Processor Targeting Computer Protection Scrap Shield Weapon EM Pulse Gun Energy Gun EM Pulse Gun Ballistic Gun Assault Rifle Special Weapon Mining Laser Build | -11 -10 -10 ------- Run | Yrd Mat Sub Slots Evolved . | . . . Power . | . . . Propulsion . | . . . Utility . | . . . Weapon . | . . . Parts Attached 33 | 8 10 15 Power 3 | 1 1 1 Engine 3 | 1 1 1 Core . | . . . Reactor . | . . . Propulsion 5 | 2 . 3 Treads 2 | 2 . . Leg . | . . . Wheel 3 | . . 3 Hover . | . . . Flight . | . . . Utility 9 | 3 1 5 Device 2 | 1 . 1 Storage 3 | 2 1 . Processor 1 | . . 1 Hackware . | . . . Protection 3 | . . 3 Artifact . | . . . Weapon 16 | 2 8 6 Energy Gun 7 | 2 5 . Energy Cannon . | . . . Ballistic Gun 5 | . 1 4 Ballistic Cannon . | . . . Launcher . | . . . Special Weapon 4 | . 2 2 Impact Weapon . | . . . Slashing Weapon . | . . . Piercing Weapon . | . . . Special Melee Weapon . | . . . Unidentified Prototypes . | . . . Parts Lost 13 | . 2 11 Power 2 | . . 2 Propulsion 3 | . . 3 Utility 2 | . . 2 Weapon 6 | . 2 4 Highest Loss Streak 4 | . 2 4 To Critical Strikes . | . . . Average Slot Usage (%) 95 | . 100 90 Engine 13 | . 14 13 Treads 18 | . 28 10 Wheel 8 | . . 17 Device 10 | . 14 7 Storage 12 | . 14 10 Protection 2 | . . 4 Energy Gun 16 | . 22 9 Ballistic Gun 9 | . 4 15 Peak Build Rating 10 | 7 8 10 Average Rating 7 | 5 7 7 On Entrance 5 | . 7 8 Naked Turns . | . . . Heaviest Build 32 | 15 30 32 Greatest Support 40 | 40 40 40 Greatest Overweight (x) 2 | 1 . 2 Average Overweight (x) . | . . . Largest Inventory Capacity 15 | 8 15 15 Average Capacity 13 | 7 14 12 Most Carried 15 | 8 15 15 Average Carried 9 | 2 10 10 Final Capacity 15 | 8 15 5 Final Carried 15 | 7 15 3 Class Distribution -------------------- 100% | Mutant Dominant Class ---------------- Mutant | -10/Materials Mutant | -10/Subcaves Resources | -11 -10 -10 ----------- Run | Yrd Mat Sub Matter Collected 526 | 202 176 148 Remotely . | . . . Salvage Created 1147 | 105 838 204 Parts 68 | 9 45 14 Haulers Intercepted 2 | . 2 . Recyclers Shooed . | . . . Parts Field Recycled . | . . . Retrieved Matter . | . . . Parts Self-Destructed 5 | . . 5 Prevented . | . . . Kills | -11 -10 -10 ------- Run | Yrd Mat Sub Combat Hostiles Destroyed 16 | . 12 4 Guns 13 | . 9 4 AOE 3 | . 3 . Classes Destroyed 9 | 2 6 1 Worker 2 | . 2 . Tunneler 2 | 2 . . Hauler 2 | . 2 . Recycler 4 | 1 3 . Operator 1 | . 1 . Watcher 3 | . 3 . Swarmer 6 | . 6 . Grunt 6 | . 6 . Subdweller 4 | . . 4 Best Kill Streak 6 | 2 6 2 Combat Bots Only 3 | . 3 2 Max Kills in Single Turn 3 | 1 3 1 Gunslinging . | . . . Exploded 3 | . 3 . Melee . | . . . Uniques/NPCs Destroyed . | . . . Combat | -11 -10 -10 -------- Run | Yrd Mat Sub Hostile Shots Fired 131 | . 47 84 Missed 28 | . 10 18 Damage Taken 1801 | . 393 1408 Core 258 | . 46 212 Absorbed by Shields . | . . . Core Remaining (%) 100 | 100 . . Volleys Fired 120 | 5 63 52 Largest 2 | 2 2 2 Hottest 140 | 90 100 140 Shots Fired 210 | 10 110 90 Gun 195 | 10 101 84 Cannon . | . . . Launcher . | . . . Special 15 | . 9 6 Kinetic 67 | . 1 66 Thermal 27 | 5 16 6 Explosive . | . . . Electromagnetic 116 | 5 93 18 Robot Hit Streak 26 | 4 13 26 Robot Miss Streak 4 | 1 4 2 Penetration Max . | . . . Secondary Targets 3 | . 3 . Max Gunslinging Chain 1 | . 1 . Shots Hit Robots 133 | 5 56 72 Core Hits 45 | 4 33 8 Critical Kills . | . . . Critical Parts Destroyed . | . . . Critical Strikes 3 | . 2 1 Burn 1 | . 1 . Corrupt 2 | . 1 1 Melee Attacks . | . . . Impact . | . . . Slashing . | . . . Piercing . | . . . Sneak Attacks . | . . . Combat Hostiles . | . . . Follow-up Attacks . | . . . Damage Inflicted 1473 | 81 1027 365 Guns 1226 | 81 790 355 Cannons . | . . . Explosions 237 | . 237 . Melee . | . . . Ramming . | . . . Kinetic 229 | . . 229 Thermal 283 | 12 261 10 Explosive . | . . . Electromagnetic 961 | 69 766 126 Impact . | . . . Slashing . | . . . Piercing . | . . . Highest Corruption . | . . . Average Corruption . | . . . Corruption Purged . | . . . Corruption Blocked . | . . . Overload Shots . | . . . Overflow Damage . | . . . Projectiles . | . . . Explosions . | . . . Melee . | . . . Knockbacks . | . . . Impact . | . . . Kinetic . | . . . Secondary . | . . . Self-Inflicted Damage 20 | . 20 . Shots 1 | . 1 . Rammed . | . . . Targets Rammed . | . . . Kicked . | . . . Crushed . | . . . Highest Temperature 152 | 90 152 . Average Temperature 43 | 41 43 . Received Heat Transfer 345 | . 135 210 Siege Activations . | . . . Robots Corrupted . | . . . Combat Hostiles . | . . . Parts Fried 5 | . 5 . Impact Corruptions . | . . . Robots Melted . | . . . Combat Hostiles . | . . . Parts Melted . | . . . Heat Transferred 615 | 37 498 80 Parts Sabotaged . | . . . Parts Stolen . | . . . Parts Stripped . | . . . Power Chain Reactions 4 | . 4 . Alert | -11 -10 -10 ------- Run | Yrd Mat Sub Peak Influence 272 | 15 272 . Initial 9 | . 9 . Average 119 | 8 131 . Maximum Alert Level 1 | . 1 . Low Security (%) 84 | 100 82 . Level 1 15 | . 17 . Level 2 . | . . . Level 3 . | . . . Level 4 . | . . . Level 5 . | . . . High Security . | . . . Max Security . | . . . Squads Dispatched 4 | . 4 . Investigation 3 | . 3 . Extermination . | . . . Reinforcement 1 | . 1 . Assault . | . . . Garrison . | . . . Intercept . | . . . Searches Triggered . | . . . Construction Impeded . | . . . Haulers Reinforced . | . . . Active Scanning Responses . | . . . Cargo Convoy Interrupts . | . . . Stealth | -11 -10 -10 --------- Run | Yrd Mat Sub Distress Signals . | . . . Communications Jammed . | . . . Distress Signals . | . . . Times Spotted 26 | . 18 8 Peak Tracking Total 3 | . 3 2 Tactical Retreats 2 | . 1 1 Traps | -11 -10 -10 ------- Run | Yrd Mat Sub Traps Triggered 2 | . 1 1 Indirectly . | . . . Trap Hack Attempts . | . . . Triggered . | . . . Disarmed . | . . . Reprogrammed . | . . . Reused . | . . . Traps Extracted . | . . . Installed . | . . . Triggered . | . . . Machines | -11 -10 -10 ---------- Run | Yrd Mat Sub Machines Disabled 1 | . 1 . Max in Single Turn 1 | . 1 . Machines Repaired . | . . . Machines Dismantled . | . . . Machines Sabotaged . | . . . Overloaded Fab Kills . | . . . Hacking | -11 -10 -10 --------- Run | Yrd Mat Sub Machines Accessed 8 | . 8 . Terminals 7 | . 7 . Fabricators . | . . . Repair Stations . | . . . Recycling Units 1 | . 1 . Scanalyzers . | . . . Garrison Access . | . . . Total Hacks 24 | . 24 . Successful 10 | . 10 . Failed 14 | . 14 . Catastrophic . | . . . Database Lockouts . | . . . Manual 22 | . 22 . Terminals 21 | . 21 . Fabricators . | . . . Repair Stations . | . . . Recycling Units 3 | . 3 . Scanalyzers . | . . . Garrison Access . | . . . Terminal Hacks 1 | . 1 . Robot Analysis 1 | . 1 . Fabricator Hacks . | . . . Repair Station Hacks . | . . . Recycling Unit Hacks 1 | . 1 . Report Inventory 1 | . 1 . Scanalyzer . | . . . Garrison Access Hacks . | . . . Unauthorized Hacks 8 | . 8 . Terminals 7 | . 7 . Assimilate 2 | . 2 . Botnet 4 | . 4 . Operators 1 | . 1 . Fabricators . | . . . Repair Stations . | . . . Recycling Units 1 | . 1 . Tunnel 1 | . 1 . Scanalyzers . | . . . Garrison Access . | . . . Data Cores Recovered . | . . . Used . | . . . Hacking Detections 8 | . 8 . Full Trace Events 2 | . 2 . Feedback Events . | . . . Feedback Blocked . | . . . Robot Schematics Acquired . | . . . Robots Built . | . . . Authchips . | . . . Time . | . . . Total Robot Build Rating . | . . . Part Schematics Acquired . | . . . Parts Built . | . . . Authchips . | . . . Time . | . . . Total Part Build Rating . | . . . Parts Repaired . | . . . Time . | . . . Parts Recycled . | . . . Recycled Matter . | . . . Retrieved Matter . | . . . Retrieved Components . | . . . Parts Scanalyzed . | . . . Part Schematics Acquired . | . . . Parts Damaged . | . . . Bothacking | -11 -10 -10 ------------ Run | Yrd Mat Sub Used RIF Installer . | . . . Robots Hacked . | . . . Non-combat . | . . . Combat . | . . . Robot Hacks Applied . | . . . Relay Couplers Released . | . . . Fabnet Peak Effective % . | . . . Robots Rewired . | . . . Allies Hacked . | . . . Hacks Repelled . | . . . Allies | -11 -10 -10 -------- Run | Yrd Mat Sub Total Allies . | . . . Largest Group . | . . . Highest-Rated Group . | . . . Highest-Rated Ally . | . . . Total Orders . | . . . Ally Attacks . | . . . Total Damage . | . . . Kills . | . . . Allies Corrupted . | . . . Allies Melted . | . . . Intel | -11 -10 -10 ------- Run | Yrd Mat Sub Robot Analysis Total 1 | . 1 . Derelict Logs Recovered 1 | . . 1 Drone Launches . | . . . Drone Recoveries . | . . . Exploration | -11 -10 -10 ------------- Run | Yrd Mat Sub Turns Passed 2615 | 139 1236 1240 Spaces Moved 1241 | 69 634 538 Core 7 | 7 . . Treads 1003 | 62 634 307 Legs . | . . . Wheels 231 | . . 231 Hover . | . . . Flight . | . . . Fastest Speed 50 | 50 160 95 Average Speed 166 | 149 160 176 Slowest Speed 240 | 160 160 240 Overloaded Moves . | . . . Propulsion Burnouts . | . . . Robots Hopped . | . . . Cave-ins Triggered . | . . . Exploration Rate (%) 37 | 4 83 24 Regions Visited 2 Branch Regions 1 Pre-discovered Areas 1 | . 1 . Known Exits Taken . | . . . Unknown Exits Taken 2 | 1 1 . Scrap Searched . | . . . Spaces Dug 4 | . 4 . Terrain Destroyed 15 | . 15 . Melee . | . . . Projectile 7 | . 7 . AOE 8 | . 8 . Terrain Rammed . | . . . Walls Destroyed . | . . . Machines Disabled . | . . . Actions | -11 -10 -10 --------- Run | Yrd Mat Sub Total 1550 | 92 729 729 Wait 110 | . 3 107 Move 1239 | 68 633 538 Hop . | . . . Pick Up 28 | 9 13 6 Fast Attach 12 | 7 2 3 Attach 9 | 1 2 6 Detach . | . . . Swap 12 | . 6 6 Drop 17 | 2 7 8 Fire 120 | 5 63 52 Melee . | . . . Ram . | . . . Kick . | . . . Crush . | . . . Escape Stasis . | . . . Rewire . | . . . Trap . | . . . Miscellaneous 3 | . . 3 Route ------- -11/Scrapyard -10/Materials (discovered 4 exits: [*Mat x3] / [*Sub]) -10/Subcaves History --------- Turn | Location | Event 3 | -11/Scrapyard | Discovered new exit (range 15) 140 | -11/Scrapyard | Entered Materials 303 | -10/Materials | Build established: Mutant 412 | -10/Materials | Discovered new exit (range 5) 746 | -10/Materials | Discovered new exit (range 11) 1082 | -10/Materials | Discovered new exit (range 7) 1285 | -10/Materials | Discovered new exit (range 12) 1376 | -10/Materials | Entered Subcaves 2056 | -10/Subcaves | A swath of the cavern ceiling suddenly collapsed 2248 | -10/Subcaves | Core integrity fell below 50% 2273 | -10/Subcaves | Shifting Twisted Machinery released Flamer 2274 | -10/Subcaves | Shifting Twisted Machinery released Scrap Shield 2280 | -10/Subcaves | Lost 3 parts (1p1n1w) 2609 | -10/Subcaves | Core integrity fell below 20% 2616 | -10/Subcaves | Destroyed by DO-PTD(R) with Subdweller Laser Last Messages --------------- 02411_ Subatomizers dissect the Imp. Terrain Scanner. 02412_ 49-SC9(R) destroyed. 02419_ Scrap Shield Fragment affixed to Scrap Shield (+47). 02422_ Subatomizers dissect the Imp. Terrain Scanner. 02422_ Sub. Monowheel shoots sparks and powers down. 02426_ Scrap Shield Fragment affixed to Scrap Shield (+44). 02429_ Scrap Shield Fragment affixed to Scrap Shield (+49). 02430_ Acquired 43 matter. 02433_ Dropped Broken Sub. Monowheel. 02498_ Subatomizers dissect the Broken Sub. Monowheel. 02511_ Subatomizers dissect the Broken Sub. Monowheel, destroying it. U7-UK0(R) emerges from concealment. 02524_ Acquired 1 matter. 02576_ Subatomizers dissect the Sub. Power Source. 02578_ Ion Engine destroyed. 02580_ Wheel destroyed. 02584_ Acquired Flamer. 02586_ Subatomizers dissect the Sub. Power Source. 02608_ Scrap Shield destroyed. 02614_ Assault Rifle destroyed. Map ----- +----------------------------------------------------+ | ?????????????????????????????????????????????????? | | ?????????????????????????????????????????????????? | | ?????????????????????????????????????????????????? | | ?????????????????????????????????????????????????? | | ?????????????????????????????????????????????????? | | ?????????????????????????????????????????????????? | | ?????????????????????????????????????????????????? | | ?????????????????????????????????????????????????? | | ?????????????????????????????????????????????????? | | ?????????????????????????????????????????????????? | | ##???????????????????????????????????????????????? | | #???????????????????????????????????????????????? | | #???????????????????????????????????????????????? | | ????????????????????????????????????????????????? | | ???##########????????????????????????????????????? | | #### ##???????????????????????????????????? | | # ##?????????????##???????????????????? | | ##???????????? ##??????????????????? | | ##?????????# ##?????????????????? | | ### #?????????"" ##????????????????? | | ###?# #### #???"" ??"" #????????????????? | | # #??####??# ##???#"""#?# #?????????????????? | | "######???## ##????#""""## #??????????????????? | | ##?#" ##?## #??????" "" #???###????????????? | | ####"" #?# ##??????? "" " #### #???????????? | | """"####?# ###??????#@ """ ??????????? | | ""####???## ##?????# " " ??????????? | | """##?????## ##????#R "" ""## #????????????? | | ""###???### ###### R """ ##???????????????? | | """"##### * "" " ##??????????????? | | #"####"# # !!! ! !" "" ###????????????? | | #""""#"#""# ! ###"" """ ##???????????? | | #""####### #!!! ##?##" "" #???????????? | | #######??####!!#####???######" ##??????????? | | ????????????####????????????##### #??????????? | | ???????????????????????????????## ##??????????? | | ???????????????????????????????# ##???????????? | | ???????????????????????????????### ##???????????? | | ????????????????????????????????# ""#???????????? | | ????????????????????????????????## ##???????????? | | ????????????????????????????????# #????????????? | | ????????????????????????????????## #????????????? | | ????????????????????????????????## #????????????? | | ????????????????????????????????# ##???????????? | | ????????????????????????????????# #???????????? | | ????????????????????????????????# ##???????????? | | ????????????????????????????????## #???????????? | | ?????????????????????????????????# #???????????? | | ?????????????????????????????????# #???????????? | | ???????????????????????????????? ??????? | +----------------------------------------------------+ Best States ------------- Heat Dissipation 25 Energy Generation 10 Energy Capacity 250 Matter Stores 300 Matter Capacity 300 Sight Range 16 Terrain Scan Density 10 Armor Coverage 800 Evasion (%) 41 Targeting Accuracy 5 Recoil Reduction 2 Item Schematics ----------------- None Robot Schematics ------------------ None Fabricated ------------ Nothing Alien Tech Used ----------------- None Achievements -------------- None Challenges ------------ None Game ------ Seed VoltaicSalvageArchive Manual? 0 Play Time 00:17:46 Cumulative 44.3 hours Start 2024.11.10 @ 14:36:00 End 2024.11.10 @ 14:50:32 Sessions 1 Manual Loads 0 Difficulty Rogue Special Mode None Game No. 83 Rogue 83 Adventurer 0 Explorer 0 Win Type - Total 0 Types 0/0/0/0/0/0/0/0/0 Lore% 35 Gallery% 30 Achievement% 32 Wizard Run 0 Options --------- Layout 0 ASCII 0 Keyboard 0 Movement Mouse Keybinds 0 Fullscreen 1 Font 24/Smallcaps Map View 91x25 Zoom Use 70% Tactical HUD 1 Map Filters NONE Filters NONE Steam 1 RUN: 653d57d8-ad5b-490b-80b1-dc6d042965e5